bitfinex-derivatives/quotes_ETHF0:USTF0_20220106
["timestamp","ask_amount","ask_price","bid_price","bid_amount"]
[1641481321804,0.73920843,3390.3,3389.7,1.5]
[1641481322004,8.43e-06,3390.3,3390.2,1.5]
[1641481322211,0.98397466,3390.6,3390.2,1.291982]
[1641481322404,0.98397466,3390.6,3390.5,2.00479]
[1641481322606,0.98397466,3390.6,3390.5,2.389262]
[1641481323006,0.98397466,3390.6,3390.5,3.246426]
[1641481323606,0.98397466,3390.6,3390.5,2.861954]
[1641481323808,0.304839,3390.9,3390.5,2.861954]
[1641481324006,0.304839,3390.9,3390.5,2.00479]
[1641481327112,1.804839,3390.9,3389.7,1.47411962]
[1641481327314,12.68,3390.8,3389.1,1.47438912]
[1641481327511,1.5,3390.4,3389.1,1.47438912]
[1641481328114,12.68,3390.8,3389.1,1.47438912]
[1641481328115,1.5,3390.6,3389.1,1.47438912]
[1641481328313,2.00479,3390.2,3389.4,2.00479]
[1641481328514,2.74559,3390.2,3389.5,0.781654]
[1641481328715,0.304839,3390.1,3389.5,0.781654]
[1641481328916,0.304839,3390.1,3389.4,2.00479]
[1641481329920,1.5,3389.6,3388.2,63.8348]
[1641481330119,1.47482402,3390.0,3388.2,32.3374]
[1641481330319,2.00479,3389.6,3388.8,2.00479]
[1641481330520,12.984839,3389.5,3388.8,2.00479]
[1641481330719,13.706139,3389.5,3388.8,2.00479]
[1641481330919,1.026139,3389.5,3388.8,2.00479]
[1641481331119,1.026139,3389.5,3388.8,2.786444]
[1641481331721,1.026139,3389.5,3388.8,2.00479]
[1641481332122,1.5,3389.4,3388.5,2.00479]
[1641481332322,2.00479,3389.0,3388.5,2.00479]
[1641481332526,12.984839,3388.9,3388.5,2.00479]
[1641481332921,1.5,3388.6,3387.4,0.619]
[1641481333122,1.5,3388.2,3387.3,1.47515471]
[1641481333523,12.68,3388.5,3387.3,1.47515471]
[1641481333722,12.68,3388.5,3387.0,1.00099896]
[1641481333922,1.4755182,3388.4,3387.0,1.00099896]
[1641481334125,12.68,3388.5,3387.0,1.00099896]
[1641481334322,0.5713,3388.6,3387.9,2.00479]
[1641481334524,0.304839,3388.5,3388.0,0.397182]
[1641481334723,1.47529617,3388.9,3388.0,0.397182]
[1641481335324,14.68479,3389.0,3387.9,2.00479]
[1641481335325,1.47541153,3388.7,3387.9,2.00479]
[1641481335524,12.984839,3388.6,3387.9,2.00479]
[1641481335926,12.984839,3388.6,3387.1,1.5]
[1641481336126,14.484839,3388.6,3386.9,0.619]
[1641481336327,14.989629,3388.6,3387.8,2.00479]
[1641481337729,2.309629,3388.6,3387.9,0.397182]
[1641481337927,0.304839,3388.6,3387.9,0.781654]
[1641481338129,0.304839,3388.6,3387.9,1.570954]
[1641481338328,0.304839,3388.6,3388.3,2.00479]
[1641481338528,0.153218,3388.5,3388.3,2.00479]
[1641481338729,0.304839,3388.4,3387.8,2.00479]
[1641481340130,0.304839,3388.4,3387.8,0.384472]
[1641481340333,2.309629,3388.4,3387.6,2.00479]
[1641481340530,2.309629,3388.4,3387.7,0.397182]
[1641481341332,14.989629,3388.4,3387.7,0.397182]
[1641481341532,2.309629,3388.4,3387.7,0.397182]
[1641481341733,2.00479,3388.4,3387.7,0.397182]
[1641481341932,2.00479,3388.9,3387.7,0.397182]
[1641481342333,2.00479,3388.9,3388.0,2.00479]
[1641481342533,12.68,3388.8,3388.0,2.00479]
[1641481342833,0.304839,3388.7,3388.1,0.781654]
[1641481344432,12.68,3388.4,3388.0,2.00479]
[1641481344635,12.984839,3388.4,3388.0,2.00479]
[1641481345439,12.984839,3388.4,3388.0,2.389262]
[1641481346837,0.304839,3388.4,3388.0,2.786444]
[1641481347136,2.00479,3388.9,3388.0,2.786444]
[1641481347736,2.00479,3388.9,3388.1,2.97479792]
[1641481347937,2.00479,3388.9,3388.2,0.397182]
[1641481348138,2.00479,3388.9,3388.2,1.068782]
[1641481349537,2.00479,3388.9,3388.2,0.397182]
[1641481350138,2.309629,3388.9,3388.2,0.397182]
[1641481350341,12.68,3388.8,3388.2,0.397182]
[1641481351343,2.00479,3389.5,3388.5,1.5]
[1641481351540,2.00479,3389.5,3388.8,1.5]
[1641481351746,0.73866263,3390.1,3389.2,2.97435217]
[1641481351946,0.73866263,3390.1,3389.4,1.4742348]
[1641481352145,0.73866263,3390.1,3389.5,0.397182]
[1641481352549,0.73866263,3390.1,3389.9,2.00479]
[1641481352749,0.73866263,3390.1,3390.0,0.459982]
[1641481353151,0.98397466,3390.4,3390.0,0.459982]
[1641481353353,0.73866263,3391.1,3390.0,0.857164]
[1641481353750,0.73866263,3391.1,3390.0,0.459982]
[1641481354050,0.73866263,3391.1,3389.9,2.00479]
[1641481354451,2.00479,3390.7,3389.9,2.00479]
[1641481354650,12.984839,3390.6,3389.9,2.00479]
[1641481354850,0.304839,3390.6,3390.0,0.781654]
[1641481355250,1.47432609,3391.2,3390.0,0.781654]
[1641481355451,0.73866263,3391.4,3390.0,0.781654]
[1641481355855,0.73866263,3391.4,3390.2,0.619]
[1641481356052,0.73866263,3391.4,3390.1,1.5]
[1641481356252,0.73866263,3391.4,3390.0,1.158372]
[1641481356253,0.73866263,3391.5,3390.5,1.5]
[1641481356452,0.73866263,3391.5,3391.0,2.00479]
[1641481356653,12.984839,3391.4,3390.7,2.00479]
[1641481356853,12.984839,3391.4,3390.0,0.384472]
[1641481357554,0.304839,3391.4,3390.1,2.97393276]
[1641481358359,0.304839,3391.4,3390.1,1.47393276]
[1641481358556,0.304839,3391.4,3390.6,2.00479]
[1641481358557,2.309629,3391.4,3390.6,2.00479]
[1641481358756,2.309629,3391.4,3390.7,0.384472]
[1641481358956,14.989629,3391.4,3390.7,0.397182]
[1641481359157,14.989629,3391.4,3390.6,2.00479]
[1641481359358,1.5,3391.0,3390.3,2.00479]
[1641481359559,1.47447608,3390.8,3388.9,1.47447608]
[1641481359958,12.68,3390.7,3388.6,63.5626]
[1641481360160,1.5,3389.9,3388.6,33.1681]
[1641481360361,12.984839,3389.8,3388.0,30.715]
[1641481360558,12.984839,3389.8,3388.0,62.7454]
[1641481360759,12.984839,3389.8,3388.0,64.22026752]
[1641481360961,2.00479,3389.4,3388.6,2.00479]
[1641481361158,13.138057,3389.3,3388.6,2.00479]
[1641481361760,0.458057,3389.3,3388.6,2.00479]
[1641481361960,13.138057,3389.3,3388.6,2.00479]
[1641481362359,0.458057,3389.3,3388.6,2.00479]
[1641481362561,0.458057,3389.3,3389.0,0.397182]
[1641481362760,0.153218,3389.3,3389.0,0.397182]
[1641481362962,2.00479,3389.4,3389.2,0.459982]
[1641481363162,0.153218,3389.3,3389.0,0.397182]
[1641481363363,2.00479,3389.4,3389.0,0.397182]
[1641481365165,12.68,3389.3,3388.2,2.00479]
[1641481365364,2.00479,3389.4,3388.2,2.00479]
[1641481366168,12.68,3389.3,3388.2,2.00479]
[1641481366367,2.00479,3389.4,3388.2,2.00479]
[1641481366566,2.00479,3389.4,3388.3,1.5]
[1641481366966,2.00479,3389.4,3388.6,2.00479]
[1641481367165,2.00479,3389.4,3388.7,0.781654]
[1641481367767,2.00479,3389.4,3388.9,1.47448478]
[1641481367966,2.00479,3389.4,3389.0,0.397182]
[1641481369169,2.00479,3389.4,3389.0,1.897182]
[1641481369372,32.0532,3390.6,3389.0,1.897182]
[1641481369570,34.26239959,3390.7,3389.0,1.897182]
[1641481370170,12.68,3390.6,3389.0,1.897182]
[1641481371071,2.00479,3390.1,3389.3,2.00479]
[1641481371276,0.304839,3390.0,3389.4,0.397182]
[1641481371471,0.304839,3390.0,3389.5,0.384472]
[1641481372372,2.00479,3390.1,3389.5,0.384472]
[1641481372572,0.304839,3390.0,3389.5,0.781654]
[1641481372971,2.00479,3390.1,3389.5,0.781654]
[1641481373173,12.984839,3390.0,3388.9,0.6244]
[1641481374374,2.97488492,3389.9,3388.9,0.6244]
[1641481374575,1.5,3389.7,3388.9,0.6244]
[1641481374773,0.304839,3389.6,3388.9,0.6244]
[1641481375173,2.00479,3389.0,3388.9,0.6244]
[1641481375373,2.00479,3389.0,3388.9,1.084382]
[1641481375575,2.00479,3389.0,3388.9,0.6244]
[1641481376175,2.62738863,3389.0,3388.9,0.74853253]
[1641481376378,2.47417063,3389.0,3388.9,1.20851453]
[1641481377376,0.46938063,3389.0,3388.9,1.60569653]
[1641481377576,0.46938063,3389.0,3388.9,1.99016853]
[1641481377777,1.24382366,3389.1,3388.9,1.99016853]
[1641481378176,0.153218,3389.0,3388.9,1.14571453]
[1641481378379,1.24382366,3389.1,3388.9,1.60569653]
[1641481378676,1.24382366,3389.1,3388.9,0.6244]
[1641481378879,0.304839,3389.0,3388.9,1.62539896]
[1641481379077,2.462847,3389.0,3388.9,1.62539896]
[1641481380079,2.462847,3389.0,3388.9,0.6244]
[1641481380279,2.309629,3389.0,3388.9,0.6244]
[1641481380478,2.00479,3389.0,3388.9,0.6244]
[1641481381081,3.40203754,3389.0,3388.9,0.6244]
[1641481381484,1.24402954,3389.0,3388.9,1.481564]
[1641481382079,1.24402954,3389.2,3388.9,1.021582]
[1641481382279,1.24402954,3389.2,3389.0,0.459982]
[1641481382579,1.24402954,3389.2,3389.1,0.397182]
[1641481382981,1.24402954,3389.2,3389.1,1.243582]
[1641481383383,1.24402954,3389.3,3389.1,1.243582]
[1641481383582,1.24402954,3389.3,3389.2,0.459982]
[1641481384183,3.48529179,3389.6,3389.2,0.459982]
[1641481384482,1.87126354,3389.8,3389.3,0.397182]
[1641481385085,1.87126354,3389.8,3389.7,2.00479]
[1641481385283,1.87126354,3389.8,3389.7,2.464772]
[1641481385684,1.4887308,3389.9,3389.7,2.464772]
[1641481385883,1.4887308,3389.9,3389.8,0.397182]
[1641481386886,1.87126354,3390.2,3389.8,0.397182]
[1641481387284,3.87605354,3390.6,3389.8,0.397182]
[1641481387484,3.87605354,3390.6,3389.9,0.459982]
[1641481387684,3.87605354,3390.6,3389.6,0.74992858]
[1641481387685,1.5,3390.2,3389.6,0.74992858]
[1641481387886,1.47468482,3390.3,3389.6,0.74992858]
[1641481388285,1.5,3389.7,3389.6,0.74992858]
[1641481388487,1.653218,3389.7,3388.6,1.87819994]
[1641481388685,0.304839,3389.6,3389.3,1.00099896]
[1641481389086,4.00958,3389.4,3389.3,1.00099896]
[1641481389287,16.994419,3389.4,3389.3,9.896e-05]
[1641481389485,17.147637,3389.4,3389.3,9.896e-05]
[1641481389686,19.19710476,3389.4,3389.3,9.896e-05]
[1641481389888,19.39704776,3389.4,3389.3,9.896e-05]
[1641481390085,17.92188,3389.4,3388.3,2.50395937]
[1641481390286,1.5,3388.7,3388.5,1.00004706]
[1641481390485,13.138057,3388.6,3388.5,1.00004706]
[1641481391086,15.142847,3388.6,3388.5,1.00004706]
[1641481391287,15.142847,3388.6,3387.6,0.47843046]
[1641481391487,2.462847,3388.6,3388.0,0.384472]
[1641481391885,12.68,3388.5,3388.0,0.384472]
[1641481392088,0.304839,3388.4,3387.4,2.00479]
[1641481393287,14.15566409,3388.1,3387.1,2.00479]
[1641481393487,1.5,3388.0,3387.1,2.00479]
[1641481393687,1.5,3387.8,3387.1,2.00479]
[1641481393886,0.304839,3387.7,3387.1,2.00479]
[1641481394090,1.5,3387.6,3387.1,2.00479]
[1641481394390,0.002,3387.1,3387.0,1.25044995]
[1641481394589,0.884718,3387.1,3387.0,1.25044995]
[1641481394788,1.189557,3387.1,3387.0,1.25044995]
[1641481395188,12.68,3387.0,3386.7,1.50053994]
[1641481395389,1.804839,3386.9,3386.7,1.50053994]
[1641481395589,1.958057,3386.9,3386.7,1.50053994]
[1641481395790,1.958057,3386.9,3386.7,3.994e-05]
[1641481396589,1.958057,3386.9,3386.5,7.04e-05]
[1641481396792,1.5,3386.7,3386.2,2.50395937]
[1641481396993,1.5,3386.4,3385.9,0.51251517]
[1641481397192,14.18,3386.1,3386.0,0.98836189]
[1641481397391,18.638057,3386.1,3385.2,3.13024886]
[1641481397594,0.002,3386.0,3385.2,3.13024886]
[1641481397992,0.348446,3385.9,3385.2,3.13024886]
[1641481398192,0.348446,3385.9,3385.3,0.384472]
[1641481398395,0.304839,3385.9,3385.3,0.384472]
[1641481398592,0.304839,3385.8,3384.5,0.619]
[1641481398793,0.304839,3385.8,3384.6,1.5]
[1641481398992,0.304839,3385.8,3384.3,1.87673538]
[1641481399191,12.68,3385.7,3384.7,4.00958]
[1641481399894,13.14979115,3385.7,3384.8,0.07829785]
[1641481400595,13.14979115,3385.7,3384.8,0.07629785]
[1641481400793,12.68,3385.7,3384.8,0.07629785]
[1641481400995,12.68,3385.7,3385.2,1.00091704]
[1641481401194,12.68,3385.3,3385.2,1.00091704]
[1641481401396,12.833218,3385.3,3385.2,1.00091704]
[1641481401595,13.138057,3385.3,3385.2,1.00091704]
[1641481402298,13.138057,3385.3,3385.0,1.00091704]
[1641481403201,1.5,3385.2,3385.0,0.69607804]
[1641481403398,1.5,3385.2,3384.8,0.07629785]
[1641481403399,12.833218,3385.1,3384.9,0.69607804]
[1641481403599,1.5,3385.0,3384.9,0.69607804]
[1641481403800,1.506545,3385.0,3384.9,0.69607804]
[1641481404000,1.506545,3385.0,3384.9,0.64807804]
[1641481404401,24.18654499,3385.0,3384.9,0.60327804]
[1641481404601,24.18654499,3385.0,3384.9,0.16657804]
[1641481404803,28.18654499,3385.0,3384.1,1.87673538]
[1641481405005,1.5,3384.2,3383.4,1.87673538]
[1641481405302,20.18479,3383.7,3383.4,1.87673538]
[1641481405502,0.153218,3383.6,3383.4,0.32573537]
[1641481405801,0.164136,3383.6,3383.4,3.537e-05]
[1641481406201,1.664136,3383.6,3383.4,3.537e-05]
[1641481406601,1.664136,3383.6,3383.1,2.50623161]
[1641481407002,14.18,3383.2,3383.1,2.50623161]
[1641481407203,16.338008,3383.2,3381.9,2.50623161]
[1641481407408,4.0,3382.7,3381.9,2.50623161]
[1641481407604,16.68,3382.7,3381.9,2.50623161]
[1641481407917,1.5,3382.4,3381.9,2.50623161]
[1641481408112,13.3085,3382.4,3381.9,2.50623161]
[1641481408311,0.476847,3382.3,3381.9,2.50623161]
[1641481408510,13.3085,3382.4,3381.9,2.50623161]
[1641481408710,0.6285,3382.4,3381.9,2.50623161]
[1641481408912,0.516174,3382.3,3381.9,2.50623161]
[1641481409112,0.516174,3382.3,3381.7,2.00479]
[1641481409311,2.00479,3382.1,3381.8,0.384472]
[1641481409511,2.00479,3382.1,3381.9,0.459982]
[1641481409713,2.74407377,3382.5,3382.0,1.897182]
[1641481409915,0.73928377,3382.5,3382.4,1.5]
[1641481410116,0.73928377,3382.5,3382.4,0.7212]
[1641481410312,0.73928377,3382.5,3382.4,1.578364]
[1641481410613,0.73928377,3382.5,3382.4,1.181182]
[1641481410614,1.23213961,3382.5,3382.4,1.181182]
[1641481410811,1.23213961,3382.5,3382.4,1.578364]
[1641481411211,1.23213961,3382.5,3382.4,3.185972]
[1641481411711,1.38535761,3382.5,3382.4,0.7212]
[1641481411912,1.38535761,3382.5,3381.6,1.50499871]
[1641481412111,0.800318,3382.5,3381.6,1.50499871]
[1641481412312,0.800318,3382.5,3382.2,1.50499871]
[1641481413011,0.153218,3382.5,3382.2,1.50499871]
[1641481413213,0.153218,3382.4,3382.2,1.50499871]
[1641481413413,1.23213961,3382.3,3382.1,0.397182]
[1641481413813,1.23213961,3382.3,3381.8,2.00479]
[1641481414014,1.23213961,3382.3,3381.9,0.397182]
[1641481414514,1.23213961,3382.3,3381.8,2.00479]
[1641481414914,1.47797514,3382.5,3381.8,2.00479]
[1641481415116,12.68,3382.5,3381.8,2.389262]
[1641481415814,12.68,3382.5,3381.9,0.397182]
[1641481416014,3.23692961,3382.6,3381.9,0.397182]
[1641481416215,2.00479,3382.6,3381.9,1.897182]
[1641481416415,12.68,3382.5,3381.9,1.897182]
[1641481416615,12.68,3382.5,3381.9,0.397182]
[1641481417015,2.00479,3382.6,3381.9,0.397182]
[1641481418415,12.68,3382.5,3381.9,0.397182]
[1641481418714,12.68,3382.5,3381.8,2.00479]
[1641481419115,12.68,3382.5,3381.9,0.384472]
[1641481419717,12.68,3382.5,3382.0,0.397182]
[1641481420617,12.68,3382.5,3381.9,0.384472]
[1641481420819,12.68,3382.5,3381.8,2.00479]
[1641481421017,2.00479,3382.6,3381.8,2.00479]
[1641481421217,14.68479,3382.6,3381.9,0.384472]
[1641481421417,14.68479,3382.6,3381.9,0.781654]
[1641481421819,14.68479,3382.6,3381.8,2.00479]
[1641481422019,1.5,3382.5,3381.5,2.00479]
[1641481422219,12.68,3382.4,3381.5,2.00479]
[1641481422421,13.200546,3382.4,3381.5,2.00479]
[1641481422619,1.47828401,3382.1,3381.5,2.00479]
[1641481422823,13.200546,3382.4,3381.5,2.00479]
[1641481423020,12.68,3382.4,3381.5,2.00479]
[1641481423219,12.68,3382.0,3381.5,2.00479]
[1641481423421,12.68,3382.1,3381.5,2.389262]
[1641481423619,2.00479,3382.6,3381.5,2.389262]
[1641481424220,2.00479,3382.6,3381.9,1.5]
[1641481424420,12.68,3382.7,3382.0,0.397182]
[1641481425022,12.68,3382.7,3382.2,1.5]
[1641481425221,12.68,3382.7,3382.6,2.00479]
[1641481425424,12.833218,3382.7,3382.6,2.389262]
[1641481425721,12.68,3382.7,3382.6,2.389262]
[1641481426124,2.00479,3383.3,3382.6,2.389262]
[1641481426325,2.00479,3383.3,3382.6,2.07101759]
[1641481426522,15.081972,3383.3,3382.6,2.07101759]
[1641481426922,16.581972,3383.3,3382.6,2.07101759]
[1641481427122,16.581972,3383.3,3382.7,0.397182]
[1641481427423,2.401972,3383.3,3382.7,0.397182]
[1641481427623,1.5,3382.9,3382.6,1.22656359]
[1641481427823,1.5,3382.7,3382.6,1.22656359]
[1641481428224,1.5,3382.7,3382.6,1.68654559]
[1641481428625,1.653218,3382.7,3382.6,1.22656359]
[1641481428825,1.5,3382.7,3382.6,1.22656359]
[1641481429425,1.5,3382.7,3382.6,1.68654559]
[1641481429626,1.653218,3382.7,3382.6,1.22656359]
[1641481429827,1.5,3382.7,3382.6,1.22656359]
[1641481430528,1.653218,3382.7,3382.6,1.22656359]
[1641481431126,1.5,3382.7,3382.6,1.22656359]
[1641481431329,1.5,3382.7,3382.6,1.68654559]
[1641481431627,1.5,3382.7,3382.6,1.22656359]
[1641481431826,16.16254098,3383.3,3382.6,1.22656359]
[1641481432026,1.5,3383.0,3382.7,0.397182]
[1641481432227,16.16254098,3383.3,3382.8,0.459982]
[1641481432426,17.66254098,3383.3,3382.8,0.459982]
[1641481432627,17.66254098,3383.3,3382.9,0.397182]
[1641481432827,16.16254098,3383.3,3382.9,0.397182]
[1641481433028,1.5,3383.0,3382.9,0.397182]
[1641481433227,1.653218,3383.0,3382.6,1.22656359]
[1641481433628,1.5,3382.7,3382.6,1.22656359]
[1641481433828,1.5,3382.7,3380.6,1.28392367]
[1641481433829,2.647682,3382.7,3380.6,1.28392367]
[1641481434229,1.5,3382.2,3380.7,30.8376]
[1641481434430,12.68,3382.6,3381.5,0.397182]
[1641481434829,1.5,3382.5,3381.5,0.397182]
[1641481435230,12.68,3382.6,3381.5,0.397182]
[1641481435429,1.5,3382.3,3382.1,2.00479]
[1641481435633,0.153218,3382.2,3382.1,2.00479]
[1641481435830,1.653218,3382.2,3382.1,2.00479]
[1641481436231,0.153218,3382.2,3382.1,2.00479]
[1641481436630,1.653218,3382.2,3382.1,2.00479]
[1641481437230,2.0504,3382.2,3380.7,30.8376]
[1641481437431,1.5,3381.9,3380.9,2.00479]
[1641481437633,2.00479,3382.0,3380.9,2.00479]
[1641481437834,1.5,3381.0,3380.9,2.00479]
[1641481438033,2.9216,3381.0,3380.9,2.00479]
[1641481438733,1.4216,3381.0,3380.9,2.00479]
[1641481439338,2.0504,3381.0,3379.4,1.47863156]
[1641481439633,1.5,3379.7,3379.0,1.47863155]
[1641481439832,13.077182,3379.6,3379.0,1.47863155]
[1641481440236,13.077182,3379.6,3379.0,2.26028555]
[1641481440433,1.897182,3379.5,3379.0,1.87581355]
[1641481440633,0.397182,3379.5,3379.0,1.47863155]
[1641481440835,1.897182,3379.5,3378.5,2.00479]
[1641481441234,0.397182,3379.5,3378.5,2.00479]
[1641481441435,2.00479,3378.9,3378.1,2.00479]
[1641481441637,2.00479,3378.9,3376.7,31.1345]
[1641481441638,13.077182,3378.8,3376.7,31.1345]
[1641481441936,13.077182,3378.8,3376.9,1.47970802]
[1641481441937,1.5,3378.0,3376.9,1.47970802]
[1641481442134,0.5977,3378.2,3376.9,1.47970802]
[1641481442735,12.68,3378.8,3378.1,1.47905364]
[1641481442938,30.5682,3380.5,3378.2,0.781654]
[1641481443237,1.5,3380.9,3378.7,12.68]
[1641481443439,1.84671819,3379.5,3379.3,3.48345654]
[1641481443637,1.84671819,3379.5,3379.4,0.857164]
[1641481443837,2.46744773,3379.8,3379.4,0.857164]
[1641481444637,3.52639106,3380.0,3379.4,0.857164]
[1641481444838,3.52639106,3380.0,3379.3,2.70009]
[1641481445039,3.52639106,3380.0,3379.3,2.00479]
[1641481445539,3.52639106,3380.0,3379.4,2.13673423]
[1641481445540,0.397182,3380.0,3379.4,2.13673423]
[1641481445738,0.397182,3380.0,3379.4,2.53391623]
[1641481446138,2.00479,3380.1,3379.4,2.53391623]
[1641481446538,0.47064334,3379.9,3379.4,2.53391623]
[1641481446739,0.47064334,3379.9,3379.4,0.781654]
[1641481446939,1.5,3379.7,3379.4,0.781654]
[1641481447339,0.47064334,3379.9,3379.4,0.781654]
[1641481447742,0.47064334,3380.0,3379.4,0.781654]
[1641481448143,1.97064334,3380.0,3379.4,0.781654]
[1641481448341,2.36782534,3380.0,3379.4,0.781654]
[1641481448543,1.5,3379.9,3379.4,0.384472]
[1641481448741,0.397182,3379.8,3379.4,0.384472]
[1641481448942,1.5,3379.7,3379.3,2.00479]
[1641481449142,1.5,3379.5,3379.3,2.00479]
[1641481449342,0.153218,3379.4,3378.9,1.50591858]
[1641481449544,1.5,3379.0,3378.9,1.50591858]
[1641481449744,4.23350245,3379.0,3378.9,1.50591858]
[1641481450347,1.253882,3379.0,3378.9,1.50591858]
[1641481450547,0.8567,3379.0,3378.7,1.50591858]
[1641481450748,1.5,3378.8,3378.7,1.50591858]
[1641481451147,1.897182,3378.8,3378.7,1.50591858]
[1641481451546,3.901972,3378.8,3378.7,1.50591858]
[1641481451747,5.940972,3378.8,3378.7,1.50591858]
[1641481451947,4.440972,3378.8,3378.4,1.00435313]
[1641481452145,1.5,3378.5,3378.4,1.00435313]
[1641481452347,12.68,3378.4,3376.4,3.7565618]
[1641481452546,8.87706521,3378.5,3376.4,3.7565618]
[1641481452547,1.5,3377.5,3376.4,3.7565618]
[1641481452746,2.281718,3377.5,3376.4,3.7565618]
[1641481452945,2.6789,3377.5,3376.4,3.7565618]
[1641481453145,1.1789,3377.5,3376.4,3.7565618]
[1641481453547,3.18369,3377.5,3376.6,2.00479]
[1641481453751,4.68369,3377.5,3376.8,2.51088282]
[1641481453947,1.5,3376.9,3376.8,2.51088282]
[1641481454147,2.0504,3376.9,3376.8,2.51088282]
[1641481454949,3.53108082,3376.9,3376.5,3.13024886]
[1641481455146,2.77709782,3376.9,3374.8,62.9868]
[1641481455347,1.5,3375.9,3374.8,32.0998]
[1641481455547,2.00479,3375.6,3374.9,2.00479]
[1641481455745,2.00479,3375.6,3375.0,0.397182]
[1641481456147,0.7633,3375.9,3375.1,12.68]
[1641481456450,1.5,3376.4,3375.2,2.26212438]
[1641481456653,1.48047038,3377.1,3375.2,2.26212438]
[1641481456654,1.5,3376.3,3375.2,2.26212438]
[1641481456847,1.5,3376.4,3375.2,2.26212438]
[1641481457047,1.48047038,3377.1,3375.2,2.26212438]
[1641481457346,1.48021179,3377.7,3376.4,12.68]
[1641481457546,1.5,3377.4,3376.7,2.00479]
[1641481457746,1.5,3377.2,3376.7,2.401972]
[1641481457948,1.5,3377.2,3376.7,2.00479]
[1641481458149,1.5,3377.2,3376.8,0.397182]
[1641481458347,2.00479,3377.5,3376.9,0.384472]
[1641481458551,2.401972,3377.5,3376.9,0.384472]
[1641481458848,1.5,3377.1,3376.7,2.00479]
[1641481459450,1.5,3376.8,3376.7,2.00479]
[1641481459651,1.653218,3376.8,3376.3,2.00479]
[1641481459850,2.458618,3376.8,3376.3,2.00479]
[1641481460050,0.397182,3376.7,3376.3,2.00479]
[1641481460250,0.397182,3376.7,3376.3,2.401972]
[1641481460454,0.397182,3376.7,3376.4,0.384472]
[1641481460653,0.397182,3376.7,3376.5,0.459982]
[1641481460855,0.397182,3376.9,3376.5,0.459982]
[1641481461053,1.897182,3376.9,3376.5,0.459982]
[1641481461454,0.397182,3376.9,3376.5,0.459982]
[1641481461655,0.397182,3376.9,3376.3,2.00479]
[1641481461855,1.897182,3376.9,3376.3,2.00479]
[1641481462354,0.397182,3376.9,3376.3,2.00479]
[1641481462555,0.397182,3376.9,3376.4,0.384472]
[1641481462953,0.397182,3376.9,3376.3,2.00479]
[1641481463155,1.5,3376.4,3375.7,2.00479]
[1641481463354,0.397182,3376.3,3375.7,2.00479]
[1641481463556,2.00479,3376.5,3375.2,2.00479]
[1641481463759,1.5,3375.8,3375.2,2.00479]
[1641481463954,1.5,3375.3,3375.2,2.00479]
[1641481464161,1.653218,3375.3,3375.2,2.00479]
[1641481464459,2.0504,3375.3,3375.2,2.00479]
[1641481464859,3.53165545,3375.3,3375.2,2.00479]
[1641481465061,2.0504,3375.3,3375.2,2.00479]
[1641481465262,3.5504,3375.3,3373.1,31.3109]
[1641481465461,2.00479,3374.6,3373.8,2.00479]
[1641481465761,1.5,3374.3,3373.8,2.00479]
[1641481466260,0.397182,3374.2,3373.8,2.00479]
[1641481466461,1.897182,3374.2,3373.8,2.00479]
[1641481466864,1.897182,3374.2,3372.7,12.68]
[1641481467163,1.5,3373.4,3372.1,12.68]
[1641481467461,1.5,3374.0,3373.0,2.00479]
[1641481467661,0.89525,3374.1,3373.0,2.00479]
[1641481467861,0.89525,3374.1,3373.0,2.70129]
[1641481468161,1.5,3373.9,3373.1,1.48136517]
[1641481468362,1.5,3373.9,3373.3,12.68]
[1641481468560,0.397182,3373.8,3373.2,0.384472]
[1641481468770,1.5,3373.9,3373.3,0.397182]
[1641481468963,1.5,3373.8,3373.3,0.397182]
[1641481469262,1.5,3373.4,3372.6,1.4816044]
[1641481469464,1.5,3373.1,3372.3,2.00479]
[1641481469662,1.5,3372.9,3372.3,2.00479]
[1641481469863,2.00479,3373.4,3372.4,0.397182]
[1641481470064,1.5,3373.1,3372.4,0.397182]
[1641481470264,2.00479,3373.4,3372.5,0.384472]
[1641481470665,1.5,3374.1,3372.6,12.68]
[1641481471064,1.48167245,3374.3,3372.5,0.944572]
[1641481471266,4.0,3375.0,3372.5,0.944572]
[1641481471267,1.5,3373.3,3372.5,0.384472]
[1641481471465,2.401972,3373.2,3372.6,0.397182]
[1641481471968,1.5,3372.9,3372.5,0.384472]
[1641481472167,0.397182,3372.8,3372.5,0.384472]
[1641481472365,1.5,3372.6,3372.5,0.384472]
[1641481472768,3.50479,3373.2,3372.5,0.384472]
[1641481473170,1.5,3372.6,3372.5,0.384472]
[1641481473368,1.5,3372.6,3372.5,0.459982]
[1641481473569,1.5,3372.8,3372.3,2.00479]
[1641481473770,2.00479,3373.2,3372.3,2.00479]
[1641481474369,2.00479,3373.2,3372.4,12.68]
[1641481474673,0.397182,3373.1,3372.5,0.397182]
[1641481474871,0.397182,3373.1,3372.3,2.00479]
[1641481475070,1.5,3372.8,3372.3,2.00479]
[1641481475269,0.397182,3372.7,3372.3,2.00479]
[1641481475471,1.5,3372.7,3372.6,1.83551065]
[1641481475670,1.653218,3372.7,3372.6,1.83551065]
[1641481475872,2.0504,3372.7,3372.6,1.83551065]
[1641481476070,1.5,3372.7,3372.6,1.83551065]
[1641481476471,1.653218,3372.7,3372.6,1.83551065]
[1641481476670,1.5,3372.7,3372.4,4.68003966]
[1641481476871,2.7093871,3373.2,3372.4,2.23269265]
[1641481477071,0.7045971,3373.2,3372.4,2.23269265]
[1641481477472,0.7045971,3373.2,3372.8,2.00479]
[1641481477671,0.7045971,3373.2,3372.9,0.781654]